bitfinex-derivatives/quotes_SOLF0:USTF0_20240830
["timestamp","ask_amount","ask_price","bid_price","bid_amount"]
[1725037127733,7.4652,133.97,133.81,3.6885505]
[1725037127734,3.7351,133.87,133.81,3.6885505]
[1725037127930,7.51666742,133.87,133.78,35.92]
[1725037128240,3.7351,133.87,133.78,39.69978635]
[1725037128738,0.04732339,133.84,133.81,0.0502846]
[1725037130138,0.04732339,133.84,133.83,3.736]
[1725037130334,0.04732339,133.84,133.81,0.0502846]
[1725037130537,0.04732339,133.84,133.81,3.7868846]
[1725037132940,3.78332339,133.84,133.81,3.7868846]
[1725037133532,0.04732339,133.84,133.82,3.7365]
[1725037134933,0.04732339,133.84,133.81,0.0502846]
[1725037135140,0.04732339,133.84,133.83,3.7362]
[1725037135641,0.04732339,133.84,133.82,3.7364]
[1725037137341,0.04732339,133.84,133.81,0.0502846]
[1725037137541,3.71218346,133.87,133.81,0.0502846]
[1725037137744,28.69,133.89,133.81,0.0502846]
[1725037138446,0.05647451,133.86,133.83,3.7361]
[1725037138642,0.05647451,133.86,133.81,0.0502846]
[1725037139150,0.05647451,133.86,133.85,3.7357]
[1725037139649,0.05647451,133.86,133.84,3.78504922]
[1725037140137,0.05647451,133.86,133.84,0.04934922]
[1725037140346,0.05647451,133.86,133.84,3.78514922]
[1725037140643,0.05647451,133.86,133.84,0.04934922]
[1725037141349,0.05647451,133.86,133.84,3.78504922]
[1725037141640,0.05647451,133.86,133.84,0.04934922]
[1725037141841,0.05647451,133.86,133.84,3.78514922]
[1725037142042,3.7357,133.85,133.84,0.04934922]
[1725037143539,28.74647451,133.86,133.76,30.0906]
[1725037143540,28.74647451,133.86,133.76,1.4006]
[1725037143737,28.74647451,133.86,133.75,30.0359]
[1725037143738,28.69,133.84,133.75,1.3459]
[1725037144241,3.7375,133.79,133.77,3.7379]
[1725037144448,3.78015985,133.81,133.77,3.7379]
[1725037144643,0.0568542,133.79,133.77,3.79137016]
[1725037144947,0.05002597,133.79,133.77,3.79137016]
[1725037145153,0.05002597,133.79,133.78,3.7376]
[1725037146240,0.05002597,133.79,133.77,3.79127016]
[1725037147441,7.471,133.86,133.77,3.79127016]
[1725037147442,1.3118,133.87,133.78,28.69]
[1725037147648,1.3118,133.87,133.83,28.69]
[1725037147849,3.7352,133.87,133.83,32.4262]
[1725037148047,3.82825339,133.89,133.83,28.69]
[1725037148243,1.3254,133.9,133.83,28.69]
[1725037148449,0.0546238,133.88,133.85,0.05463824]
[1725037149054,3.7896238,133.88,133.85,0.05463824]
[1725037149349,0.0546238,133.88,133.85,0.05463824]
[1725037149645,3.7351,133.87,133.85,0.05463824]
[1725037149850,0.0546238,133.88,133.85,0.05463824]
[1725037150346,3.7354,133.86,133.85,0.05463824]
[1725037151045,3.7352,133.87,133.85,0.05463824]
[1725037152941,0.0546238,133.88,133.85,0.05463824]
[1725037153248,3.7354,133.86,133.85,0.05463824]
[1725037153848,32.4254,133.86,133.85,0.05463824]
[1725037154056,3.7358,133.85,133.77,1.3945]
[1725037154255,28.69,133.85,133.77,1.3945]
[1725037154447,3.7361,133.84,133.81,3.7366]
[1725037155052,3.78670993,133.84,133.81,3.79139648]
[1725037155444,3.78670993,133.84,133.82,3.7365]
[1725037156048,0.05060993,133.84,133.82,3.7365]
[1725037156751,3.78650993,133.84,133.82,3.7365]
[1725037157646,0.05060993,133.84,133.83,3.7362]
[1725037163758,1.3254,133.9,133.87,3.735]
[1725037164056,3.7345,133.9,133.87,3.735]
[1725037164351,28.69,133.94,133.89,3.7344]
[1725037164557,3.7337,133.92,133.84,30.0252]
[1725037164756,0.05031265,133.89,133.87,0.0488878]
[1725037165158,28.69,133.88,133.87,0.0488878]
[1725037165557,0.05031265,133.89,133.87,0.0488878]
[1725037165765,28.69,133.88,133.78,28.69]
[1725037166062,28.69,133.86,133.78,28.69]
[1725037166362,3.736,133.84,133.77,2.7692]
[1725037166562,32.45597004,133.86,133.77,2.7692]
[1725037166754,0.05321013,133.83,133.8,0.05682956]
[1725037166959,3.78941013,133.83,133.8,3.79372956]
[1725037167163,0.05321013,133.83,133.8,0.05682956]
[1725037168363,3.78961013,133.83,133.8,3.79382956]
[1725037168861,3.78961013,133.83,133.8,0.05682956]
[1725037170763,3.78961013,133.83,133.8,3.79392956]
[1725037173366,3.78961013,133.83,133.81,3.7368]
[1725037173966,3.78961013,133.83,133.8,3.79372956]
[1725037174767,3.7365,133.82,133.8,3.79372956]
[1725037175566,3.7365,133.82,133.8,0.05682956]
[1725037176965,3.78951013,133.83,133.8,0.05682956]
[1725037177367,3.78951013,133.83,133.8,3.79382956]
[1725037177562,0.05321013,133.83,133.8,3.79382956]
[1725037178168,3.78961013,133.83,133.81,3.7368]
[1725037178567,3.78961013,133.83,133.8,3.79372956]
[1725037178968,3.7365,133.82,133.8,3.79372956]
[1725037179664,3.78951013,133.83,133.8,3.79372956]
[1725037181764,3.78951013,133.83,133.81,3.7367]
[1725037181963,3.7365,133.82,133.8,0.05682956]
[1725037182162,0.05321013,133.83,133.8,0.05682956]
[1725037182774,3.7365,133.82,133.8,3.79372956]
[1725037183172,0.05321013,133.83,133.8,3.79372956]
[1725037183371,3.78961013,133.83,133.8,3.79372956]
[1725037183672,32.47961013,133.83,133.8,3.79372956]
[1725037184771,3.7365,133.82,133.8,3.79372956]
[1725037188370,3.7368,133.81,133.8,0.05682956]
[1725037189173,3.7366,133.82,133.8,0.05682956]
[1725037189774,28.74321013,133.83,133.8,0.05682956]
[1725037189775,0.05321013,133.83,133.8,0.05682956]
[1725037191475,0.05321013,133.83,133.82,3.7365]
[1725037193173,3.78941013,133.83,133.81,3.7367]
[1725037194879,0.05321013,133.83,133.8,0.05682956]
[1725037195279,0.05321013,133.83,133.82,3.7365]
[1725037195576,343.0,133.92,133.81,28.69]
[1725037195777,3.7343,133.9,133.86,3.7351]
[1725037195981,11.47,133.91,133.84,15.17852981]
[1725037196182,11.47,133.91,133.84,11.47]
[1725037196380,15.2041,133.91,133.87,3.7349]
[1725037196688,0.05101371,133.9,133.88,0.04939455]
[1725037198489,0.05101371,133.9,133.89,3.7345]
[1725037199285,1.3384,133.96,133.88,0.04939455]
[1725037199489,29.9984,133.96,133.88,0.04939455]
[1725037199693,28.66,133.94,133.88,0.04939455]
[1725037199883,32.35951138,133.94,133.88,0.04939455]
[1725037200083,28.66,133.92,133.88,0.04939455]
[1725037200291,0.05295969,133.91,133.88,0.04939455]
[1725037200497,28.71295969,133.91,133.88,0.04939455]
[1725037200697,32.44695969,133.91,133.88,0.04939455]
[1725037201595,3.7344,133.9,133.88,0.04939455]
[1725037202302,35.14625969,133.91,133.88,0.04939455]
[1725037204602,31.41215969,133.91,133.88,0.04939455]
[1725037205496,1.43525969,133.91,133.88,0.04939455]
[1725037205696,0.05295969,133.91,133.9,3.7343]
[1725037206598,0.05295969,133.91,133.88,0.04939455]
[1725037206905,28.66,133.89,133.88,0.04939455]
[1725037207095,32.3945,133.89,133.88,0.04939455]
[1725037207496,28.66,133.89,133.88,0.04939455]
[1725037208198,32.3945,133.89,133.88,0.04939455]
[1725037208504,2.8772,133.91,133.82,33.77640663]
[1725037208899,2.8772,133.91,133.88,3.7346]
[1725037209402,5.23280437,133.91,133.88,3.78665428]
[1725037209594,1.49880437,133.91,133.88,0.05205428]
[1725037209798,28.66,133.9,133.88,0.05205428]
[1725037209998,3.7345,133.89,133.88,0.05205428]
[1725037210400,28.66,133.9,133.88,0.05205428]
[1725037210804,32.3945,133.9,133.88,0.05205428]
[1725037211209,28.66,133.9,133.78,28.66]
[1725037211505,32.3951,133.87,133.78,28.66]
[1725037211705,3.80993278,133.86,133.78,28.66]
[1725037211910,28.66,133.87,133.78,28.66]
[1725037212106,28.66,133.87,133.84,3.7359]
[1725037212307,28.66,133.89,133.81,3.65384615]
[1725037212504,0.05540572,133.87,133.84,0.05687081]
[1725037212699,0.05540572,133.87,133.85,3.7356]
[1725037212899,0.05540572,133.87,133.84,0.05687081]
[1725037213307,0.05540572,133.87,133.85,3.7355]
[1725037213508,0.05540572,133.87,133.84,0.05687081]
[1725037214396,0.05540572,133.87,133.86,3.7354]
[1725037215205,32.34222554,133.94,133.84,28.66]
[1725037215504,32.3933,133.94,133.84,28.66]
[1725037215707,32.3933,133.94,133.9,3.7341]
[1725037216103,0.04753508,133.93,133.91,0.05083646]
[1725037216506,0.04753508,133.93,133.91,3.78473646]
[1725037216908,28.66,133.92,133.91,0.05083646]
[1725037217212,28.66,133.92,133.83,1.3516]
[1725037217504,32.3944,133.9,133.86,3.7352]
[1725037217710,28.66,133.9,133.86,3.7352]
[1725037217908,28.66,133.88,133.78,28.66]
[1725037218106,11.14940857,133.9,133.83,3.79160216]
[1725037218107,28.66,133.85,133.83,3.79160216]
[1725037219913,28.66,133.85,133.84,3.7359]
[1725037220506,28.66,133.85,133.83,3.79150216]
[1725037220810,0.05410279,133.86,133.83,0.05540216]
[1725037221713,0.05410279,133.86,133.84,3.7358]
[1725037222215,3.78950279,133.86,133.84,3.7358]
[1725037222414,3.78950279,133.86,133.83,3.79150216]
[1725037223908,32.3958,133.85,133.83,0.05540216]
[1725037225510,32.3959,133.84,133.83,0.05540216]
[1725037226014,28.66,133.84,133.77,3.8140673]
[1725037226215,28.66,133.84,133.74,28.66]
[1725037226712,32.3962,133.84,133.81,3.7368]
[1725037226912,32.45122057,133.84,133.81,3.7877074]
[1725037227518,3.79122057,133.84,133.81,3.7877074]
[1725037228616,3.79122057,133.84,133.81,0.0509074]
[1725037228818,3.7364,133.83,133.81,0.0509074]
[1725037229716,28.71502057,133.84,133.81,0.0509074]
[1725037229717,3.7365,133.82,133.81,0.0509074]
[1725037229916,28.71502057,133.84,133.81,0.0509074]
[1725037230111,3.7363,133.83,133.81,0.0509074]
[1725037231118,32.45102057,133.84,133.81,0.0509074]
[1725037231517,32.45102057,133.84,133.81,3.7876074]
[1725037232522,3.7363,133.83,133.81,3.7876074]
[1725037233116,3.7365,133.82,133.81,0.0509074]
[1725037234423,28.66,133.82,133.74,3.81668224]
[1725037234615,28.66,133.79,133.72,4.0849]
[1725037234929,28.66,133.79,133.77,3.7378]
[1725037235425,28.71528015,133.79,133.77,3.7938505]
[1725037235918,0.05528015,133.79,133.77,0.0560505]
[1725037236322,0.05528015,133.79,133.78,3.7376]
[1725037236710,0.05528015,133.79,133.77,0.0560505]
[1725037236911,0.05528015,133.79,133.78,3.7376]
[1725037238034,11.54528015,133.79,133.78,3.7376]
[1725037239334,0.05528015,133.79,133.78,3.7376]
[1725037239727,11.49,133.87,133.78,11.49]
[1725037239929,11.49,133.87,133.81,11.49]
[1725037240123,11.49,133.87,133.81,15.28643371]
[1725037240431,11.49,133.87,133.81,3.79643371]
[1725037240623,0.05332852,133.85,133.83,0.05063327]
[1725037241226,11.49,133.84,133.83,0.05063327]
[1725037241424,11.49,133.84,133.83,3.78683327]
[1725037242137,0.05332852,133.85,133.84,3.7359]
[1725037242836,0.05332852,133.85,133.83,0.05063327]
[1725037243031,28.74332852,133.85,133.83,0.05063327]
[1725037245739,28.74332852,133.85,133.75,4.1547]
[1725037245931,1.4267,133.86,133.75,4.1547]
[1725037245932,28.69,133.83,133.75,4.1547]
[1725037246835,0.05149766,133.8,133.78,0.04808327]
[1725037247540,0.05149766,133.8,133.79,3.7373]
[1725037249640,0.05149766,133.8,133.78,3.78558327]
[1725037249832,0.05149766,133.8,133.78,0.04808327]
[1725037250232,0.05149766,133.8,133.78,3.78548327]
[1725037251645,0.05149766,133.8,133.79,3.7373]
[1725037255943,0.05149766,133.8,133.78,3.78548327]
[1725037256842,0.05149766,133.8,133.79,3.7373]
[1725037258755,1.3815,133.87,133.79,28.69]
[1725037259058,8.8525,133.87,133.79,28.69]
[1725037259244,3.7356,133.86,133.83,3.7362]
[1725037259948,3.78707038,133.86,133.83,3.79197426]
[1725037261146,3.7357,133.85,133.83,3.79197426]
[1725037261558,7.471,133.84,133.83,0.05577426]
[1725037262049,28.69,133.85,133.76,1.3575]
[1725037262258,28.69,133.82,133.76,1.3575]
[1725037262447,7.471,133.81,133.76,1.3575]
[1725037262857,7.471,133.81,133.75,1.3513]
[1725037263049,0.05437846,133.8,133.77,0.04879524]
[1725037263245,0.05437846,133.8,133.79,3.7373]
[1725037264854,36.161,133.85,133.79,3.7373]
[1725037265060,28.69,133.89,133.81,28.69]
[1725037265254,32.43112865,133.89,133.82,3.75569865]
[1725037265451,28.69,133.89,133.81,3.75597759]
[1725037265654,32.46689393,133.89,133.79,28.69]
[1725037266061,0.05429589,133.85,133.83,0.04942922]
[1725037266357,0.05429589,133.85,133.84,3.7359]
[1725037267557,28.74429589,133.85,133.83,3.78562922]
[1725037268150,32.48009589,133.85,133.77,28.69]
[1725037268357,28.69,133.83,133.75,30.1231]
[1725037269054,28.69,133.83,133.8,3.7368]
[1725037269255,28.74539699,133.83,133.8,3.78427333]
[1725037270669,28.69,133.81,133.73,1.3998]
[1725037270852,3.68798083,133.8,133.74,3.71562854]
[1725037271160,3.68798083,133.8,133.73,1.3998]
[1725037271661,7.42508083,133.8,133.76,3.738]
[1725037271863,0.05175612,133.79,133.77,0.05104649]
[1725037272658,0.05175612,133.79,133.77,3.78894649]
[1725037273463,0.05175612,133.79,133.78,3.7376]
[1725037277668,1.3396,133.85,133.82,3.7362]
[1725037277871,1.3396,133.85,133.8,3.65351565]
[1725037278064,1.3396,133.85,133.77,2.8129]
[1725037278667,1.3396,133.85,133.83,3.7361]
[1725037278871,1.39257283,133.85,133.83,3.7361]
[1725037279574,1.39257283,133.85,133.8,0.04862688]
[1725037279877,30.08257283,133.85,133.8,0.04862688]
[1725037280875,1.39257283,133.85,133.8,0.04862688]
[1725037281370,1.39257283,133.85,133.83,3.7361]
[1725037282376,5.12827283,133.85,133.83,3.7361]
[1725037282574,5.12827283,133.85,133.82,3.7365]
[1725037282775,1.39257283,133.85,133.8,0.04862688]
[1725037283175,1.39257283,133.85,133.83,3.736]
[1725037283473,0.05297283,133.85,133.8,3.76893014]
[1725037283678,0.05297283,133.85,133.84,3.7359]
[1725037286079,0.05297283,133.85,133.83,0.05036392]
[1725037286080,28.74297283,133.85,133.83,0.05036392]
[1725037286475,28.74297283,133.85,133.8,3.7369]
[1725037286476,3.7363,133.83,133.8,3.7369]
[1725037286676,32.4263,133.83,133.8,3.7369]
[1725037287485,32.4263,133.83,133.81,3.7368]
[1725037287779,32.4263,133.83,133.81,1.5514]
[1725037287975,3.76494173,133.82,133.73,39.81794544]
[1725037288169,28.69,133.83,133.73,39.81794544]
[1725037288374,28.69,133.83,133.8,3.7369]
[1725037289087,28.69,133.83,133.8,3.86058662]
[1725037289088,0.04993791,133.83,133.8,3.86058662]
[1725037289380,0.04993791,133.83,133.8,0.05052173]
[1725037289577,0.04993791,133.83,133.82,3.7365]
[1725037293580,0.04993791,133.83,133.8,0.05052173]
[1725037294284,0.04993791,133.83,133.82,3.7365]
[1725037302887,0.04993791,133.83,133.8,0.05052173]
[1725037303205,28.73993791,133.83,133.8,0.05052173]
[1725037303387,28.69,133.81,133.8,0.05052173]
[1725037303587,32.44887054,133.81,133.8,0.05052173]
[1725037303786,36.18567054,133.81,133.8,0.05052173]
[1725037303993,32.4268,133.81,133.8,0.05052173]
[1725037305096,7.471,133.82,133.8,0.05052173]
[1725037305295,0.04993791,133.83,133.8,0.05052173]
[1725037305596,0.04993791,133.83,133.82,3.7365]
[1725037308098,0.04993791,133.83,133.81,3.7366]
[1725037308686,0.04993791,133.83,133.81,3.7367]
[1725037308896,0.04993791,133.83,133.8,0.05052173]
[1725037308897,3.71806364,133.82,133.8,0.05052173]
[1725037309493,7.45466364,133.82,133.8,0.05052173]
[1725037309692,28.73993791,133.83,133.8,0.05052173]
[1725037310195,0.04993791,133.83,133.8,0.05052173]
[1725037310886,0.04993791,133.83,133.82,3.7365]
[1725037317816,1.3614,133.91,133.87,3.735]
[1725037318098,3.6544558,133.9,133.87,3.735]
[1725037318304,7.3888558,133.9,133.87,3.735]
[1725037318697,3.6544558,133.9,133.88,3.7346]
[1725037318898,0.05257838,133.9,133.88,0.05644359]
[1725037319096,0.05257838,133.9,133.89,3.7345]
[1725037319704,0.05257838,133.9,133.88,0.05644359]
[1725037320493,57.38,133.89,133.63,29.9345]
[1725037320700,28.69,133.8,133.71,2.7913]
[1725037320901,28.69,133.8,133.73,3.739]
[1725037320902,28.69,133.76,133.73,3.739]
[1725037321094,28.69,133.78,133.71,4.1251]
[1725037321295,28.69,133.8,133.71,36.51108923]
[1725037321499,0.05082235,133.77,133.74,0.05475883]
[1725037321701,2.6731,133.88,133.74,0.05475883]
[1725037321702,2.6731,133.88,133.75,28.69]
[1725037321906,28.69,133.85,133.76,31.52]
[1725037322207,35.86,133.86,133.76,38.69]
[1725037322507,35.86,133.9,133.86,3.7352]
[1725037322713,0.05126068,133.89,133.87,0.05066232]
[1725037323003,0.05173355,133.89,133.87,0.05474456]
[1725037324017,0.05173355,133.89,133.88,3.7348]
[1725037324195,4.1636,134.0,133.87,0.05474456]
[1725037324196,3.75168324,133.96,133.87,0.05474456]
[1725037324398,3.75168324,133.96,133.86,35.86]
[1725037324399,35.86,133.97,133.86,35.86]
[1725037324708,35.86,133.95,133.89,3.7345]
[1725037324897,35.86,133.95,133.84,35.86]
[1725037324898,3.74757354,133.94,133.84,35.86]
[1725037325098,0.04989881,133.9,133.88,3.78312843]
[1725037325505,0.04989881,133.9,133.88,0.04852843]
[1725037326811,4.1636,134.0,133.89,35.86]
[1725037327105,3.663954,133.99,133.89,37.1717]
[1725037327406,3.663954,133.99,133.93,3.7333]
[1725037327708,0.05422291,133.97,133.95,0.05642069]
[1725037328999,35.86,133.96,133.95,0.05642069]
[1725037329606,39.5926,133.96,133.95,0.05642069]
[1725037329794,35.86,133.96,133.91,3.7339]
[1725037330598,35.86,133.96,133.85,2.7551]
[1725037330803,0.05572229,133.92,133.89,0.04988592]
[1725037331008,35.86,133.91,133.77,35.86]
[1725037331310,35.86,133.88,133.78,2.6575]
[1725037331506,3.7347,133.89,133.78,6.44464887]
[1725037331703,5.15476782,133.92,133.82,35.86]
[1725037331904,8.88866782,133.92,133.83,1.4525]
[1725037332211,0.05348279,133.89,133.86,0.05550991]
[1725037332704,0.05348279,133.89,133.87,3.7349]
[1725037333904,0.05348279,133.89,133.88,3.7348]
[1725037334406,7.56059249,133.95,133.9,3.7341]
[1725037334611,6.40024873,133.96,133.86,35.86]
[1725037335007,3.7329,133.95,133.9,3.7341]
[1725037335203,0.05173102,133.94,133.91,0.05727787]
[1725037335404,0.05173102,133.94,133.91,3.79097787]
[1725037336013,0.05173102,133.94,133.91,0.05727787]
[1725037336212,0.05173102,133.94,133.92,3.7337]
[1725037337013,0.05173102,133.94,133.91,0.05727787]
[1725037337014,343.0,134.02,133.91,35.91727787]
[1725037337212,39.5272823,134.02,133.92,1.4436]
[1725037337514,39.5272823,134.02,133.96,3.7325]
[1725037338015,3.78921495,134.0,133.98,0.04911276]
[1725037339111,0.05741495,134.0,133.98,0.04911276]
[1725037339318,0.05741495,134.0,133.99,3.7318]
[1725037339508,35.86,134.06,133.98,3.81907842]
[1725037339821,39.67213613,134.06,134.02,3.7308]
[1725037340009,39.67213613,134.06,133.97,35.86]
[1725037340210,35.86,134.08,133.97,35.86]
[1725037340401,39.57846544,134.08,133.98,1.3903]
[1725037340608,0.04716223,134.04,134.02,0.05179421]
[1725037340807,0.04716223,134.04,134.02,3.78259421]
[1725037341210,0.04716223,134.04,134.02,0.05179421]
[1725037341411,0.04716223,134.04,134.03,3.7306]
[1725037344909,0.04716223,134.04,134.02,0.05179421]
[1725037345420,0.04716223,134.04,134.03,3.7306]
[1725037346208,7.475,134.09,134.06,3.7297]
[1725037346414,3.729,134.09,134.01,35.86]
[1725037346720,3.729,134.09,134.05,3.7299]
[1725037346920,3.7287,134.11,134.03,35.86]
[1725037347316,235.4533,134.18,134.07,3.7295]
[1725037347317,0.05010882,134.08,134.07,3.7295]
[1725037347621,0.05276766,134.09,134.07,39.57485955]
[1725037347816,40.0895,134.19,134.07,39.62277709]
[1725037348021,43.85730646,134.19,134.09,35.86]
[1725037348230,11.1675,134.33,134.02,1.3429]
[1725037348231,7.78455281,134.35,134.13,35.86]
[1725037348419,3.7253,134.23,134.13,35.86]
[1725037348724,0.05113559,134.19,134.17,0.05317146]
[1725037348917,0.05081187,134.19,134.17,0.05317146]
[1725037349517,0.05081187,134.19,134.17,3.77987146]
[1725037349715,0.05081187,134.19,134.17,0.05317146]
[1725037350916,0.05081187,134.19,134.17,3.77977146]
[1725037352016,0.05081187,134.19,134.18,3.7265]
[1725037352316,0.05081187,134.19,134.17,0.05317146]
[1725037353518,0.05081187,134.19,134.17,3.77977146]
[1725037353913,0.05081187,134.19,134.17,0.05317146]
[1725037354533,3.77721187,134.19,134.17,0.05317146]
[1725037354819,0.05081187,134.19,134.17,0.05317146]
[1725037357217,3.77711187,134.19,134.17,0.05317146]
[1725037358628,15.22836306,134.33,134.17,35.91317146]
[1725037358826,35.86,134.29,134.17,39.62146113]
[1725037359029,35.86,134.29,134.19,35.86]
[1725037359325,35.86,134.29,134.23,3.7248]
[1725037359526,35.86,134.29,134.19,35.86]
[1725037359833,0.0514074,134.27,134.25,0.05718399]
[1725037360517,3.7604344,134.27,134.25,0.05718399]
[1725037360725,35.9114074,134.27,134.25,0.05718399]
[1725037360927,2.7063,134.26,134.2,3.7258]
[1725037361126,3.725,134.24,134.2,3.7258]
[1725037361818,3.725,134.24,134.21,0.05484298]
[1725037361819,0.05519308,134.23,134.21,0.05484298]
[1725037362025,3.78039308,134.23,134.21,0.05484298]
[1725037362628,3.7254,134.22,134.21,0.05484298]
[1725037362831,0.05519308,134.23,134.21,0.05484298]
[1725037363732,0.05519308,134.23,134.21,3.78024298]
[1725037363930,0.05519308,134.23,134.21,0.05484298]
[1725037364131,0.05519308,134.23,134.22,3.7254]
[1725037364318,0.05519308,134.23,134.21,0.05484298]
[1725037364829,0.05519308,134.23,134.22,3.7254]
[1725037365424,362.00669,134.4,134.25,3.7245]
[1725037365425,38.5999,134.33,134.25,3.7245]
[1725037365629,42.41798273,134.33,134.22,3.74879173]
[1725037365832,3.7236,134.29,134.25,3.7244]
[1725037366425,0.04723345,134.28,134.26,0.05201859]
[1725037366626,0.04723345,134.28,134.26,3.77621859]
[1725037366820,0.04723345,134.28,134.26,0.05201859]
[1725037367630,0.04723345,134.28,134.27,3.724]
[1725037368325,0.04723345,134.28,134.26,0.05201859]
[1725037370531,0.04723345,134.28,134.26,3.77611859]
[1725037371331,0.04723345,134.28,134.27,3.724]
[1725037372132,350.441,134.4,134.29,3.7234]
[1725037372336,35.86,134.37,134.27,35.86]
[1725037372635,35.86,134.37,134.3,3.7231]
[1725037372636,3.7225,134.33,134.3,3.7231]
[1725037372933,3.72514721,134.33,134.27,1.4172]
[1725037373126,0.05593242,134.31,134.29,0.05299927]
[1725037373327,0.04774632,134.31,134.29,0.05299927]
[1725037373939,0.04774632,134.31,134.29,3.77639927]
[1725037374822,0.04774632,134.31,134.29,0.05299927]
[1725037376035,3.77064632,134.31,134.29,3.77629927]
[1725037376232,0.04774632,134.31,134.29,3.77629927]
[1725037376436,0.04774632,134.31,134.29,0.05299927]
[1725037376632,0.04774632,134.31,134.29,3.77629927]
[1725037377032,0.04774632,134.31,134.29,0.05299927]
[1725037377429,0.04774632,134.31,134.3,3.7231]
[1725037377631,4.1522,134.38,134.29,35.91299927]
[1725037377831,4.1522,134.38,134.29,35.86]
[1725037378741,0.04839259,134.35,134.32,3.77872141]
[1725037379143,3.7222,134.34,134.32,0.05622141]
[1725037379337,3.81357467,134.33,134.32,0.05622141]
[1725037379540,0.04839259,134.35,134.32,0.05622141]
[1725037379738,3.7223,134.33,134.32,0.05622141]
[1725037380042,7.51901728,134.33,134.32,0.05622141]
[1725037380241,3.7223,134.33,134.32,0.05622141]
[1725037380643,71.72,134.34,134.23,1.3367]
[1725037380842,4.1522,134.38,134.13,14.911]
[1725037380843,7.4448,134.33,134.19,1.3604]
[1725037381138,343.0,134.37,134.19,1.3604]
[1725037381139,3.7237,134.29,134.21,35.86]
[1725037381334,3.7237,134.29,134.22,1.4434]
[1725037381540,35.86,134.34,134.26,35.86]
[1725037381835,0.04828949,134.31,134.29,0.05249822]
[1725037382039,0.04884964,134.31,134.29,0.05249822]
[1725037382339,3.7231,134.3,134.29,0.05249822]
[1725037382539,8.95346173,134.3,134.29,0.05249822]
[1725037383136,0.04884964,134.31,134.29,0.05249822]
[1725037383331,2.7481,134.38,134.29,35.91249822]
[1725037383538,1.4329,134.39,134.31,35.86]
[1725037383744,3.72700904,134.4,134.34,3.7218]
[1725037383939,35.86,134.41,134.31,39.51328062]
[1725037384345,0.04826888,134.37,134.35,0.05067903]
[1725037385251,0.04826888,134.37,134.35,3.76204871]
[1725037385451,0.04826888,134.37,134.35,3.77237903]
[1725037385638,0.04826888,134.37,134.35,3.71177933]
[1725037386140,0.04826888,134.37,134.35,0.05067903]
[1725037386541,0.04826888,134.37,134.36,3.7215]
[1725037386945,0.04826888,134.37,134.35,0.05067903]
[1725037387551,3.7215,134.36,134.35,0.05067903]
[1725037387944,35.86,134.36,134.27,2.8109]
[1725037388144,1.3915,134.35,134.27,2.8109]
[1725037388547,3.7232,134.3,134.27,2.8109]
[1725037388749,3.66618993,134.33,134.27,2.8109]
[1725037389044,0.05427342,134.31,134.29,3.77999215]
[1725037389244,0.05427342,134.31,134.29,0.05679215]
[1725037389647,3.77717342,134.31,134.29,0.05679215]
[1725037389952,0.05427342,134.31,134.29,0.05679215]
[1725037391448,37.2759,134.39,134.29,0.05679215]
[1725037391641,37.2759,134.39,134.29,6.51114293]
[1725037391850,37.2759,134.39,134.29,2.7872]
[1725037391851,3.7215,134.36,134.29,2.7872]
[1725037392154,3.7215,134.36,134.3,35.86]
[1725037392343,3.7213,134.37,134.32,3.7223]
[1725037392543,3.69006521,134.38,134.32,3.7223]
[1725037392746,0.05537001,134.36,134.33,0.05336569]
[1725037393048,0.05537001,134.36,134.33,3.77566569]
[1725037394744,0.05537001,134.36,134.34,3.722]
[1725037395751,0.05537001,134.36,134.33,0.05336569]
[1725037396648,3.722,134.34,134.33,0.05336569]
[1725037397656,39.582,134.34,134.33,0.05336569]
[1725037398650,3.722,134.34,134.33,0.05336569]
[1725037399654,7.45292178,134.34,134.33,0.05336569]
[1725037399949,3.722,134.34,134.33,0.05336569]
[1725037401060,3.7219,134.35,134.33,0.05336569]
[1725037401245,3.81793817,134.36,134.33,0.05336569]
[1725037401658,3.7219,134.35,134.33,0.05336569]
[1725037402151,0.05537001,134.36,134.33,0.05336569]
[1725037402753,3.722,134.34,134.33,0.05336569]